Cogmind - Beta 13 @@@ ROGUE MODE // 2024.04.01 @ 11:07:21 Player: H3-RMN Result: Destroyed by P-60 Hacker with Shock Rifle Performance ------------- Evolutions (3) 1500 Regions Visited (8) 1600 Robots Destroyed (40) 200 Value Destroyed (1581) 1581 Prototype IDs (25) 500 Alien Tech Used (0) 0 Bonus (1011) 1011 TOTAL SCORE: 6392 Bonus ------- High Alert Combat Kills 19 Entered Garrisons 200 Used RIF Installer 500 Aligned with FarCom 300 Friendly Fire -8 Cogmind --------- Core Integrity 0/700 Matter 263/300 Energy 100/100 System Corruption 1% Temperature Cool (0) Movement Core (350) Ox6 Location -7/Factory Parts ------- > --- POWER (1) -------- (None) > --- PROPULSION (2) --- (None) > --- UTILITY (7) ------ Large Storage Unit Core Analyzer > --- WEAPON (3) ------- (None) > --- INVENTORY (15) --- Light Treads Huge Storage Unit High-capacity Matter Pod (200) Hacking Suite Authchip [R/Combat] Authchip [R/Combat] Authchip [R/Combat] Authchip [R/Combat] Authchip [R/Combat] Authchip [R/Combat] Authchip [R/Combat] Authchip [R/Combat] Improved EM Pulse Cannon Latent Energy Streamer Grenade Launcher Peak State ------------ > --- POWER ------------ Light Nuclear Core > --- PROPULSION ------- Potential Leg Potential Leg > --- UTILITY ---------- Improved Heat Sink Improved Heat Sink Improved Heat Sink Large Storage Unit Humpback Core Analyzer > --- WEAPON ----------- Light Assault Rifle Improved Light Cannon Gauss Cannon > --- INVENTORY -------- Light Treads Huge Storage Unit High-capacity Matter Pod Improved Sensor Array Modified TNC Hacking Suite System Shield Authchip [R/Combat] Authchip [R/Combat] Authchip [R/Combat] Authchip [R/Combat] Authchip [R/Combat] Authchip [R/Combat] Authchip [R/Combat] Authchip [R/Combat] Authchip [R/Combat] Authchip [R/Combat] Authchip [R/Combat] Authchip [R/Combat] Authchip [R/Combat] Authchip [R/Combat] Authchip [R/Combat] Improved EM Pulse Cannon Latent Energy Streamer Flak Gun Grenade Launcher Chainsword [Rating: 56] Favorites ----------- Power Light Nuclear Core Engine Backup Power III Power Core Light Nuclear Core Propulsion Potential Leg Leg Potential Leg Hover Unit Backup Propulsion III Utility Improved Heat Sink Device Improved Heat Sink Storage Large Storage Unit Processor Core Analyzer Hackware Hacking Suite Protection Reflective Plating Weapon Gauss Cannon Energy Gun Medium Laser Ballistic Gun Light Assault Rifle Ballistic Cannon Gauss Cannon Launcher Grenade Launcher Slashing Weapon Mining Claw Build | -11 -10 -10 -10 -9 -8 -7 -7 -7 ------- Run | Yrd Mat Min Exi Min Mat Fac Gar Fac Slots Evolved 6 | . . . . . 4 2 . . Power . | . . . . . . . . . Propulsion . | . . . . . . . . . Utility 5 | . . . . . 4 1 . . Weapon 1 | . . . . . . 1 . . Parts Attached 45 | 2 4 2 4 . 15 3 15 . Power 5 | . . . . . 1 . 4 . Engine . | . . . . . . . . . Core 5 | . . . . . 1 . 4 . Reactor . | . . . . . . . . . Propulsion 3 | . . . 2 . 1 . . . Treads . | . . . . . . . . . Leg 3 | . . . 2 . 1 . . . Wheel . | . . . . . . . . . Hover . | . . . . . . . . . Flight . | . . . . . . . . . Utility 20 | . 3 . 1 . 8 2 6 . Device 8 | . . . . . 2 1 5 . Storage 2 | . . . 1 . . . 1 . Processor 3 | . 1 . . . 1 1 . . Hackware 1 | . 1 . . . . . . . Protection 6 | . 1 . . . 5 . . . Artifact . | . . . . . . . . . Weapon 17 | 2 1 2 1 . 5 1 5 . Energy Gun 1 | 1 . . . . . . . . Energy Cannon . | . . . . . . . . . Ballistic Gun 3 | 1 . . 1 . . . 1 . Ballistic Cannon 9 | . . . . . 5 1 3 . Launcher 3 | . . 2 . . . . 1 . Special Weapon . | . . . . . . . . . Impact Weapon . | . . . . . . . . . Slashing Weapon 1 | . 1 . . . . . . . Piercing Weapon . | . . . . . . . . . Special Melee Weapon . | . . . . . . . . . Unidentified Prototypes . | . . . . . . . . . Parts Lost 21 | . . 3 . . 2 . 11 5 Power 5 | . . 1 . . 1 . 2 1 Propulsion 2 | . . 1 . . . . . 1 Utility 9 | . . . . . 1 . 6 2 Weapon 5 | . . 1 . . . . 3 1 Highest Loss Streak 5 | . . 3 . . 2 . 4 5 To Critical Strikes . | . . . . . . . . . Average Slot Usage (%) 76 | . 57 76 79 85 72 91 86 72 Core 3 | . . . . . 7 . 5 6 Leg 12 | . . . 16 28 17 15 15 10 Hover 2 | . 6 17 5 . . . . . Device 7 | . . . . . 1 8 14 16 Storage 7 | . . . 4 14 9 7 9 14 Processor 8 | . 12 14 9 . 1 12 11 7 Hackware 5 | . 6 14 14 14 9 7 . . Protection 4 | . 1 . . . 8 15 6 . Ballistic Gun 4 | . 14 3 8 14 . . 3 5 Ballistic Cannon 11 | . . . . . 17 23 17 9 Launcher 3 | . . 22 19 14 . . 1 . Slashing Weapon 1 | . 8 2 . . . . . . Naked Turns . | . . . . . . . . . Heaviest Build 240 | 3 6 7 24 24 47 51 240 240 Greatest Support 60 | 3 16 16 60 60 60 60 60 30 Greatest Overweight (x) 78 | . 1 . 2 . 1 . 7 78 Average Overweight (x) . | . . . . . . . 1 15 Largest Inventory Capacity 35 | 5 5 5 15 15 15 15 35 35 Average Capacity 16 | 5 5 5 8 15 15 15 20 33 Most Carried 28 | . 5 5 9 11 15 15 28 28 Average Carried 13 | . 3 5 5 10 14 14 16 27 Final Capacity 35 | 5 5 5 15 15 15 15 35 15 Final Carried 28 | . 5 5 9 11 14 15 28 15 Class Distribution -------------------- 61% | Mutant 19% | Hauler-Mutant 7% | Gunner 7% | Tank 4% | Scavenger-Mutant Dominant Class ---------------- Mutant | -10/Materials Mutant | -10/Mines Mutant | -10/Exiles Mutant | -9/Mines Mutant | -8/Materials Gunner | -7/Factory Mutant | -7/Garrison Hauler-Mutant | -7/Factory Resources | -11 -10 -10 -10 -9 -8 -7 -7 -7 ----------- Run | Yrd Mat Min Exi Min Mat Fac Gar Fac Matter Collected 1909 | 170 410 . 189 . 410 172 558 . Remotely . | . . . . . . . . . Salvage Created 1188 | . 380 47 . . 216 158 387 . Parts 65 | . 20 2 . . 10 6 27 . Haulers Intercepted 2 | . 2 . . . . . . . Recyclers Shooed . | . . . . . . . . . Parts Field Recycled . | . . . . . . . . . Retrieved Matter . | . . . . . . . . . Parts Self-Destructed . | . . . . . . . . . Prevented . | . . . . . . . . . Kills | -11 -10 -10 -10 -9 -8 -7 -7 -7 ------- Run | Yrd Mat Min Exi Min Mat Fac Gar Fac Combat Hostiles Destroyed 43 | . 7 13 . . 6 3 14 . Melee 3 | . 3 . . . . . . . Guns 5 | . 4 . . . . . 1 . Cannons 19 | . . . . . 6 3 10 . AOE 16 | . . 13 . . . . 3 . Classes Destroyed 10 | . 4 1 . . 4 . 1 . Worker 1 | . . . . . 1 . . . Hauler 2 | . 2 . . . . . . . Recycler 2 | . . . . . 1 1 . . Operator 2 | . 2 . . . . . . . Swarmer 8 | . 2 . . . . . 6 . Grunt 19 | . 5 3 . . 4 3 4 . Duelist 1 | . . . . . . . 1 . Sentry 4 | . . . . . 1 . 3 . Hunter 1 | . . . . . 1 . . . Assembled 10 | . . 10 . . . . . . Best Kill Streak 10 | . 5 10 . . 3 3 4 . Combat Bots Only 10 | . 4 10 . . 3 3 4 . Max Kills in Single Turn 4 | . 1 4 . . 2 1 3 . Gunslinging . | . . . . . . . . . Exploded 4 | . . 4 . . . . 3 . Melee 1 | . 1 . . . . . . . Uniques/NPCs Destroyed . | . . . . . . . . . Combat | -11 -10 -10 -10 -9 -8 -7 -7 -7 -------- Run | Yrd Mat Min Exi Min Mat Fac Gar Fac Hostile Shots Fired 468 | . 24 21 . . 53 7 252 111 Missed 154 | . 5 11 . . 15 3 90 30 Damage Taken 3796 | . 207 212 . . 590 52 1499 1236 Core 920 | . 58 49 . . 106 . 298 409 Absorbed by Shields . | . . . . . . . . . Ignored by Resistances 67 | . . . . . . 8 59 . Core Remaining (%) 79 | 100 . . . 57 80 . . . Volleys Fired 117 | . 20 9 . . 32 5 48 3 Largest 3 | . 2 2 . . 2 3 3 2 Hottest 144 | . 70 63 . . 96 144 144 59 Shots Fired 218 | . 37 12 . . 62 15 86 6 Gun 50 | . 37 . . . . . 10 3 Cannon 155 | . . . . . 62 15 75 3 Launcher 13 | . . 12 . . . . 1 . Special . | . . . . . . . . . Kinetic 188 | . 20 . . . 62 15 85 6 Thermal 17 | . 17 . . . . . . . Explosive 13 | . . 12 . . . . 1 . Electromagnetic . | . . . . . . . . . Robot Hit Streak 22 | . 6 5 . . 7 5 22 3 Robot Miss Streak 4 | . 2 2 . . 3 1 4 1 Penetration Max 1 | . . . . . 1 . 1 . Secondary Targets 1 | . 1 . . . . . . . Max Gunslinging Chain 1 | . 1 . . . . . . . Shots Hit Robots 148 | . 39 7 . . 37 11 50 4 Core Hits 87 | . 17 25 . . 11 6 27 1 Critical Kills . | . . . . . . . . . Critical Parts Destroyed . | . . . . . . . . . Critical Strikes 10 | . . . . . 1 3 5 1 Blast 10 | . . . . . 1 3 5 1 Melee Attacks 16 | . 16 . . . . . . . Impact . | . . . . . . . . . Slashing 16 | . 16 . . . . . . . Piercing . | . . . . . . . . . Sneak Attacks 1 | . 1 . . . . . . . Combat Hostiles . | . . . . . . . . . Follow-up Attacks . | . . . . . . . . . Damage Inflicted 4466 | . 633 993 . . 1034 313 1411 82 Guns 346 | . 265 . . . . . 64 17 Cannons 2532 | . . . . . 1034 313 1120 65 Explosions 1220 | . . 993 . . . . 227 . Melee 368 | . 368 . . . . . . . Ramming . | . . . . . . . . . Kinetic 2713 | . 100 . . . 1034 313 1184 82 Thermal 165 | . 165 . . . . . . . Explosive 1220 | . . 993 . . . . 227 . Electromagnetic . | . . . . . . . . . Impact . | . . . . . . . . . Slashing 368 | . 368 . . . . . . . Piercing . | . . . . . . . . . Highest Corruption 1 | . . . . . . . . 1 Average Corruption 1 | . . . . . . . . 1 Corruption Purged . | . . . . . . . . . Corruption Blocked . | . . . . . . . . . Overload Shots . | . . . . . . . . . Overflow Damage 68 | . 15 21 . . 17 . 13 2 Projectiles 32 | . . . . . 17 . 13 2 Explosions 21 | . . 21 . . . . . . Melee 15 | . 15 . . . . . . . Knockbacks 24 | . . . . . 5 3 15 1 Impact . | . . . . . . . . . Kinetic 21 | . . . . . 5 3 12 1 Secondary 3 | . . . . . . . 3 . Self-Inflicted Damage 84 | . . 84 . . . . . . Shots 4 | . . 4 . . . . . . Rammed . | . . . . . . . . . Targets Rammed . | . . . . . . . . . Kicked . | . . . . . . . . . Crushed . | . . . . . . . . . Highest Temperature 560 | . 122 9 . . 362 294 560 . Average Temperature 159 | . 44 5 . . 127 142 279 . Received Heat Transfer 714 | . 84 30 . . 162 54 384 . Effects 22 | . . . . . 4 2 16 . Shutdowns 1 | . . . . . 1 . . . Energy Bleed 3 | . . . . . 1 . 2 . Interference 9 | . . . . . 2 2 5 . Matter Decay 2 | . . . . . . . 2 . Short Circuit 2 | . . . . . . . 2 . Damage (major) 4 | . . . . . . . 4 . Damage (core) 1 | . . . . . . . 1 . Siege Activations . | . . . . . . . . . Robots Corrupted . | . . . . . . . . . Combat Hostiles . | . . . . . . . . . Parts Fried . | . . . . . . . . . Impact Corruptions . | . . . . . . . . . Robots Melted . | . . . . . . . . . Combat Hostiles . | . . . . . . . . . Parts Melted 1 | . 1 . . . . . . . Heat Transferred 481 | . 481 . . . . . . . Parts Sabotaged . | . . . . . . . . . Parts Stolen . | . . . . . . . . . Parts Stripped . | . . . . . . . . . Power Chain Reactions . | . . . . . . . . . Alert | -11 -10 -10 -10 -9 -8 -7 -7 -7 ------- Run | Yrd Mat Min Exi Min Mat Fac Gar Fac Peak Influence 464 | . 288 149 . . 119 127 464 250 Initial 243 | . . 36 . . . 51 88 243 Average 199 | . 156 72 . . 65 65 342 239 Maximum Alert Level 2 | . 1 . . . . . 2 1 Low Security (%) 48 | 100 56 100 . 100 100 100 7 8 Level 1 36 | . 43 . . . . . 51 91 Level 2 14 | . . . . . . . 41 . Level 3 . | . . . . . . . . . Level 4 . | . . . . . . . . . Level 5 . | . . . . . . . . . High Security . | . . . . . . . . . Max Security . | . . . . . . . . . Squads Dispatched 8 | . 4 . . . 2 1 . 1 Investigation 1 | . 1 . . . . . . . Extermination 1 | . . . . . . . . 1 Reinforcement 6 | . 3 . . . 2 1 . . Assault . | . . . . . . . . . Garrison . | . . . . . . . . . Intercept . | . . . . . . . . . Searches Triggered . | . . . . . . . . . Construction Impeded . | . . . . . . . . . Haulers Reinforced . | . . . . . . . . . Active Scanning Responses . | . . . . . . . . . Cargo Convoy Interrupts . | . . . . . . . . . Stealth | -11 -10 -10 -10 -9 -8 -7 -7 -7 --------- Run | Yrd Mat Min Exi Min Mat Fac Gar Fac Distress Signals 4 | . 1 . . . 2 . . 1 Communications Jammed . | . . . . . . . . . Distress Signals . | . . . . . . . . . Times Spotted 68 | . 17 14 . . 11 5 16 5 Peak Tracking Total 11 | . 6 11 . . 6 4 5 5 Tactical Retreats 4 | . 1 1 . . . . 2 . Traps | -11 -10 -10 -10 -9 -8 -7 -7 -7 ------- Run | Yrd Mat Min Exi Min Mat Fac Gar Fac Traps Triggered 10 | . . . . . 3 . 5 2 Indirectly . | . . . . . . . . . Trap Hack Attempts . | . . . . . . . . . Triggered . | . . . . . . . . . Disarmed . | . . . . . . . . . Reprogrammed . | . . . . . . . . . Reused . | . . . . . . . . . Traps Extracted . | . . . . . . . . . Installed . | . . . . . . . . . Triggered . | . . . . . . . . . Machines | -11 -10 -10 -10 -9 -8 -7 -7 -7 ---------- Run | Yrd Mat Min Exi Min Mat Fac Gar Fac Machines Disabled 3 | . . . . . 2 . 1 . Max in Single Turn 1 | . . . . . 1 . 1 . Garrison Relay 1 | . . . . . . . 1 . Machines Repaired . | . . . . . . . . . Machines Dismantled . | . . . . . . . . . Machines Sabotaged . | . . . . . . . . . Overloaded Fab Kills . | . . . . . . . . . Hacking | -11 -10 -10 -10 -9 -8 -7 -7 -7 --------- Run | Yrd Mat Min Exi Min Mat Fac Gar Fac Machines Accessed 10 | . 3 . 2 . . 2 2 1 Terminals 5 | . 2 . . . . . 2 1 Fabricators . | . . . . . . . . . Repair Stations 1 | . 1 . . . . . . . Recycling Units 1 | . . . . . . 1 . . Scanalyzers . | . . . . . . . . . Garrison Access 1 | . . . . . . 1 . . Total Hacks 23 | . 7 . 5 . . 3 5 3 Successful 15 | . 4 . 5 . . 3 2 1 Failed 8 | . 3 . . . . . 3 2 Catastrophic 1 | . . . . . . . . 1 Database Lockouts . | . . . . . . . . . Manual 5 | . 4 . 1 . . . . . Terminals 14 | . 6 . . . . . 5 3 Fabricators . | . . . . . . . . . Repair Stations 1 | . 1 . . . . . . . Recycling Units 2 | . . . . . . 2 . . Scanalyzers . | . . . . . . . . . Garrison Access 1 | . . . . . . 1 . . Terminal Hacks 11 | . 3 . 5 . . . 2 1 Record 4 | . . . 4 . . . . . Robot Schematic 1 | . 1 . . . . . . . Robot Analysis 1 | . 1 . . . . . . . Prototype ID Bank 1 | . 1 . . . . . . . Open Door 1 | . . . . . . . 1 . Emergency Access Points 1 | . . . . . . . 1 . Fabricator Index 1 | . . . . . . . . 1 Derelict Proto ID Bank 1 | . . . 1 . . . . . Fabricator Hacks . | . . . . . . . . . Repair Station Hacks 1 | . 1 . . . . . . . Refit 1 | . 1 . . . . . . . Recycling Unit Hacks 2 | . . . . . . 2 . . Report Inventory 1 | . . . . . . 1 . . Retrieve Components 1 | . . . . . . 1 . . Scanalyzer . | . . . . . . . . . Garrison Access Hacks 1 | . . . . . . 1 . . Unlock Access 1 | . . . . . . 1 . . Unauthorized Hacks . | . . . . . . . . . Terminals . | . . . . . . . . . Fabricators . | . . . . . . . . . Repair Stations . | . . . . . . . . . Recycling Units . | . . . . . . . . . Scanalyzers . | . . . . . . . . . Garrison Access . | . . . . . . . . . Data Cores Recovered . | . . . . . . . . . Used . | . . . . . . . . . Hacking Detections 7 | . 3 . . . . 1 2 1 Full Trace Events 2 | . 1 . . . . . 1 . Feedback Events . | . . . . . . . . . Feedback Blocked . | . . . . . . . . . Robot Schematics Acquired 1 | . 1 . . . . . . . Robots Built . | . . . . . . . . . Authchips . | . . . . . . . . . Time . | . . . . . . . . . Total Robot Build Rating . | . . . . . . . . . Part Schematics Acquired . | . . . . . . . . . Parts Built . | . . . . . . . . . Authchips . | . . . . . . . . . Time . | . . . . . . . . . Total Part Build Rating . | . . . . . . . . . Parts Repaired . | . . . . . . . . . Time . | . . . . . . . . . Parts Recycled . | . . . . . . . . . Recycled Matter . | . . . . . . . . . Retrieved Matter . | . . . . . . . . . Retrieved Components 2 | . . . . . . 2 . . Parts Scanalyzed . | . . . . . . . . . Part Schematics Acquired . | . . . . . . . . . Parts Damaged . | . . . . . . . . . Bothacking | -11 -10 -10 -10 -9 -8 -7 -7 -7 ------------ Run | Yrd Mat Min Exi Min Mat Fac Gar Fac Used RIF Installer 1 | . . . . . . . 1 . Robots Hacked . | . . . . . . . . . Non-combat . | . . . . . . . . . Combat . | . . . . . . . . . Robot Hacks Applied . | . . . . . . . . . Relay Couplers Released 5 | . . . . . . . 5 . Machine Destruction 5 | . . . . . . . 5 . Fabnet Peak Effective % . | . . . . . . . . . Robots Rewired . | . . . . . . . . . Allies Hacked . | . . . . . . . . . Hacks Repelled . | . . . . . . . . . Allies | -11 -10 -10 -10 -9 -8 -7 -7 -7 -------- Run | Yrd Mat Min Exi Min Mat Fac Gar Fac Total Allies 2 | . . 1 . . . . 1 . Largest Group 1 | . . 1 1 . . . 1 1 Highest-Rated Group 31 | . . 31 31 . . . 20 20 Highest-Rated Ally 31 | . . 31 31 . . . 20 20 Total Orders . | . . . . . . . . . Ally Attacks . | . . . . . . . . . Total Damage . | . . . . . . . . . Kills . | . . . . . . . . . Allies Corrupted . | . . . . . . . . . Allies Melted . | . . . . . . . . . Intel | -11 -10 -10 -10 -9 -8 -7 -7 -7 ------- Run | Yrd Mat Min Exi Min Mat Fac Gar Fac Robot Analysis Total 1 | . 1 . . . . . . . Derelict Logs Recovered 2 | . . 1 . 1 . . . . Drone Launches . | . . . . . . . . . Drone Recoveries . | . . . . . . . . . Exploration | -11 -10 -10 -10 -9 -8 -7 -7 -7 ------------- Run | Yrd Mat Min Exi Min Mat Fac Gar Fac Turns Passed 3019 | 15 420 140 333 50 666 92 952 351 Spaces Moved 1790 | 24 507 141 371 52 175 74 413 33 Core 440 | 24 409 . 3 . . . . 4 Treads . | . . . . . . . . . Legs 955 | . . . 212 52 175 74 413 29 Wheels . | . . . . . . . . . Hover 395 | . 98 141 156 . . . . . Flight . | . . . . . . . . . Fastest Speed 50 | 50 50 76 80 90 90 90 90 650 Average Speed 115 | 50 56 79 86 90 90 90 173 1037 Slowest Speed 3950 | 50 100 80 150 90 170 90 650 3950 Overloaded Moves . | . . . . . . . . . Propulsion Burnouts . | . . . . . . . . . Robots Hopped . | . . . . . . . . . Cave-ins Triggered . | . . . . . . . . . Exploration Rate (%) 30 | 3 67 43 70 18 19 3 50 1 Regions Visited 8 Branch Regions 3 Pre-discovered Areas 2 | . . . 1 1 . . . . Known Exits Taken 1 | . . . . . . 1 . . Unknown Exits Taken 6 | 1 1 1 1 1 1 . . . Scrap Searched 1 | . . . . 1 . . . . Spaces Dug 5 | . . 5 . . . . . . Terrain Destroyed 102 | . . 82 . . 18 1 1 . Melee . | . . . . . . . . . Projectile 20 | . . . . . 18 1 1 . AOE 82 | . . 82 . . . . . . Terrain Rammed . | . . . . . . . . . Walls Destroyed . | . . . . . . . . . Machines Disabled . | . . . . . . . . . Actions | -11 -10 -10 -10 -9 -8 -7 -7 -7 --------- Run | Yrd Mat Min Exi Min Mat Fac Gar Fac Total 2511 | 25 580 156 383 55 615 89 571 37 Wait 467 | . 18 5 . 2 388 1 52 1 Move 1783 | 23 506 140 370 51 174 74 412 33 Hop . | . . . . . . . . . Pick Up 40 | . 10 . 5 2 2 3 18 . Fast Attach 32 | 2 3 1 3 . 14 1 8 . Attach 8 | . 1 . . . 1 2 4 . Detach 4 | . . . . . 3 1 . . Swap 5 | . . 1 1 . . . 3 . Drop 14 | . 6 . 4 . 1 2 1 . Fire 117 | . 20 9 . . 32 5 48 3 Melee 16 | . 16 . . . . . . . Ram . | . . . . . . . . . Kick . | . . . . . . . . . Crush . | . . . . . . . . . Escape Stasis 25 | . . . . . . . 25 . Rewire . | . . . . . . . . . Trap . | . . . . . . . . . Miscellaneous . | . . . . . . . . . Route ------- -11/Scrapyard -10/Materials (discovered 3 exits: [*Mat x2] / [*Min]) -10/Mines (discovered 2 exits: [*Mat] / *Exi) -10/Exiles (discovered 2 exits: [*Min x2]) -9/Mines -8/Materials -7/Factory -7/Garrison -7/Factory History --------- Turn | Location | Event 5 | -11/Scrapyard | Discovered new exit (range 16) 16 | -11/Scrapyard | Entered Materials 114 | -10/Materials | Discovered new exit (range 8) 184 | -10/Materials | Discovered new exit (range 10) 317 | -10/Materials | Build established: Mutant 416 | -10/Materials | Discovered new exit (range 6) 436 | -10/Materials | Entered Mines 446 | -10/Mines | Assembled infested the area 476 | -10/Mines | Received a Rocket Launcher from a helpful Derelict 488 | -10/Mines | Destroyed 10 combat bots 498 | -10/Mines | Lost 3 parts (1p1n1w) 509 | -10/Mines | Learned Materials stockpile data 546 | -10/Mines | Discovered new exit (range 14) 547 | -10/Mines | Escorted by a lone wolf Derelict 570 | -10/Mines | Deemed a non-threat by the Exiles lab entrance 571 | -10/Mines | Discovered new exit (range 5) 576 | -10/Mines | Entered Exiles 576 | -10/Exiles | Accompanied by 1 ally 587 | -10/Exiles | Discovered new exit (range 15) 597 | -10/Exiles | Met 8R-AWN 610 | -10/Exiles | Met EX-HEX 639 | -10/Exiles | Met EX-DEC 653 | -10/Exiles | Learned location of Zion (-6) 666 | -10/Exiles | Met EX-BIN 678 | -10/Exiles | Aligned with FarCom system 679 | -10/Exiles | Given EX-Vault access code 697 | -10/Exiles | Opened EX-Vault 706 | -10/Exiles | Found Potential Leg 709 | -10/Exiles | Found Potential Leg 716 | -10/Exiles | Found Latent Energy Streamer 720 | -10/Exiles | Found Modified TNC 740 | -10/Exiles | Warned to stay clear of 0b10 Research branches 902 | -10/Exiles | Discovered new exit (range 10) 909 | -10/Exiles | Stole three prototypes: Potential Leg, Modified TNC, Latent Energy Streamer 909 | -10/Exiles | Entered Mines 937 | -9/Mines | Discovered new exit (range 13) 959 | -9/Mines | Entered Materials 959 | -8/Materials | Evolved 4 slots: Utility x4 1600 | -8/Materials | Discovered new exit (range 16) 1625 | -8/Materials | Entered Factory 1625 | -7/Factory | Evolved 2 slots: Utility x1, Weapon x1 1627 | -7/Factory | FarCom data flow suspended 1717 | -7/Factory | Identified exit to Garrison 1717 | -7/Factory | Entered Garrison 1726 | -7/Garrison | Triggered checkpoint 1774 | -7/Garrison | Triggered checkpoint 1932 | -7/Garrison | Triggered checkpoint 2055 | -7/Garrison | Lost 3 parts (1p1u1w) 2246 | -7/Garrison | Installed Relay Interface Framework 2261 | -7/Garrison | Lost 4 parts (1p2u1w) 2334 | -7/Garrison | Rescued a captive Derelict 2338 | -7/Garrison | Discovered new exit (range 11) 2669 | -7/Garrison | Entered Factory 2669 | -7/Factory | Accompanied by 1 ally 2717 | -7/Factory | Build established: Hauler-Mutant 2960 | -7/Factory | Core integrity fell below 50% 3010 | -7/Factory | Core integrity fell below 20% 3020 | -7/Factory | Destroyed by P-60 Hacker with Shock Rifle Last Messages --------------- 02973_ Lgt. Nuclear Core destroyed. 02984_ Chain reaction triggered in Lgt. Nuclear Core. 02984_ S-27 Virus destroyed. 02990_ Broken Potential Leg destroyed. 03000_ Humpback destroyed. 03001_ U-05 Engineer builds a Wall. 03004_ R-06 Scavenger collects Corrupted Autogun. 03005_ U-05 Engineer builds a Wall. 03009_ R-06 Scavenger collects Authchip [R/Combat]. 03014_ U-05 Engineer builds a Wall. 03015_ P-60 Hacker resets R-06 Scavenger, system corruption cleaned. 03016_ R-06 Scavenger collects Authchip [R/Combat]. 03018_ U-05 Engineer builds a Wall. 03019_ R-06 Scavenger collects Authchip [R/Combat]. Map ----- +----------------------------------------------------+ | ?????????????????????????????????????????????????? | | ?????????????????????????????????????????????????? | | ?????????????????????#######?????????????????????? | | ?????????????????????# #?????????????????????? | | ?????????????????????# #?????????????????????? | | ?????????????????????# #?????????????????????? | | ?????????????????????# #?????????????????????? | | ????????????########## #?????????????????????? | | ???????????? # #?????????????????????? | | ???????????"""""" # ##????????????????????? | | ?????????? """""" # T#????????????????????? | | ????????# """""" # ##????????????????????? | | ????????# """""" # #?????????????????????? | | ????????# + #?????????????????????? | | ????????# """""" # #?????????????????????? | | ????????# """""" # #?????????????????????? | | ?????????? """""" # #?????????????????????? | | ???????????"""""" # #?????????????????????? | | ???????????? # % #?????????????????????? | | ???????????? # #?????????????????????? | | ????????????########## #?????????????????????? | | ?????????????????????# % #?????????????????????? | | ?????????????????????# % #?????????????????????? | | ?????????????????????# ^s!^#?????????????????????? | | ?????????????????????# /!!!#?????????????????????? | | ?????????????????????# !@ #?????????????????????? | | ?????????????????????# r !r ??????????????????? | | ?????????????????????# rs ??????????????? | | ?????????????????????# p w ??????????? | | ?????????????????????# % ?????????? | | ?????????????????????# ??????????? | | ?????????????????????#########+##### ??????????? | | ?????????????????????????? ] ??????"??????????? | | ?????????????????????????? #????????????????? | | ?????????????????????????? """" #????????????????? | | ?????????????????????????? """" +????????????????? | | ?????????????????????????? ""???#????????????????? | | ?????????????????????????? "?????????????????????? | | ?????????????????????????? "?????????????????????? | | ?????????????????????????????????????????????????? | | ?????????????????????????????????????????????????? | | ?????????????????????????????????????????????????? | | ?????????????????????????????????????????????????? | | ?????????????????????????????????????????????????? | | ?????????????????????????????????????????????????? | | ?????????????????????????????????????????????????? | | ?????????????????????????????????????????????????? | | ?????????????????????????????????????????????????? | | ?????????????????????????????????????????????????? | | ?????????????????????????????????????????????????? | +----------------------------------------------------+ Best States ------------- Heat Dissipation 76 Energy Generation 14 Energy Capacity 160 Matter Stores 300 Matter Capacity 300 Sight Range 16 Robot Scan Range 15 Terrain Scan Density 10 Armor Coverage 300 Resistance: TH 10 Resistance: EX 25 Evasion (%) 57 Targeting Accuracy 5 Core Analysis 6 Offensive Hacking 10 Authchip Count 16 Item Schematics ----------------- None Robot Schematics ------------------ M-13 Machinist | -10/Materials | Hacked Fabricated ------------ Nothing Alien Tech Used ----------------- None Achievements -------------- None Challenges ------------ None Game ------ Seed SuspensionSalvageKatana Manual? 0 Play Time 00:22:46 Cumulative 675.4 hours Start 2024.04.01 @ 10:44:45 End 2024.04.01 @ 11:07:21 Sessions 1 Manual Loads 0 Difficulty Rogue Special Mode None Game No. 275 Rogue 247 Adventurer 3 Explorer 25 Win Type - Total 15 Types 10/2/1/1/0/1/0/0/0 Lore% 91 Gallery% 96 Achievement% 85 Wizard Run 0 Options --------- Layout 2 ASCII 0 Keyboard 0 Movement Numpad Keybinds 0 Fullscreen 2 Font 24/Smallcaps Map View 50x44 Zoom Use 0% Tactical HUD 1 Map Filters NONE Filters NONE Steam 1 RUN: b1b967f4-bf17-4c2e-8732-53f7acf2d2ff